bitfinex/quotes_BTCUSD_20240718
["timestamp","ask_amount","ask_price","bid_price","bid_amount"]
[1721310013147,1.37614274,64891.0,64884.0,0.12798386]
[1721310013148,0.154118,64885.0,64884.0,0.12798386]
[1721310013389,0.75883674,64885.0,64884.0,0.12798386]
[1721310013617,0.45059974,64885.0,64884.0,0.12798386]
[1721310013839,0.29648174,64885.0,64884.0,0.12798386]
[1721310014068,0.45059974,64885.0,64884.0,0.12798386]
[1721310014497,1.47531074,64885.0,64884.0,0.12798386]
[1721310014716,1.19007374,64885.0,64884.0,0.12798386]
[1721310015163,1.21949589,64885.0,64884.0,0.12798386]
[1721310016339,1.20007374,64885.0,64884.0,0.12898386]
[1721310016790,1.20007374,64885.0,64884.0,0.001]
[1721310017228,1.20007374,64885.0,64884.0,0.002]
[1721310017943,1.58774516,64885.0,64884.0,0.002]
[1721310018189,0.1395,64860.0,64846.0,0.0608]
[1721310018405,0.1395,64860.0,64853.0,0.46304871]
[1721310018406,0.15419,64856.0,64853.0,0.46304871]
[1721310018632,0.15419,64856.0,64851.0,0.0048935]
[1721310018633,0.154191,64855.0,64851.0,0.0048935]
[1721310018868,0.15438174,64859.0,64844.0,0.000913]
[1721310018869,0.154186,64857.0,64854.0,0.00456092]
[1721310019130,0.154188,64856.0,64844.0,0.000913]
[1721310019347,0.154192,64854.0,64844.0,0.000913]
[1721310019567,0.15438174,64859.0,64845.0,0.00459872]
[1721310019818,0.154184,64858.0,64850.0,0.001]
[1721310020031,0.154191,64855.0,64850.0,0.001]
[1721310020256,0.30857174,64855.0,64850.0,0.001]
[1721310020473,0.15438174,64855.0,64850.0,0.001]
[1721310020689,0.30857174,64855.0,64850.0,0.001]
[1721310021377,0.154199,64851.0,64850.0,0.001]
[1721310021596,0.76087974,64851.0,64850.0,0.001]
[1721310021819,1.06927874,64851.0,64850.0,0.001]
[1721310022070,0.154206,64849.0,64844.0,0.000913]
[1721310022278,0.012,64855.0,64844.0,0.066713]
[1721310022504,0.16638174,64855.0,64844.0,0.066713]
[1721310022718,0.17338174,64855.0,64850.0,0.001]
[1721310022932,0.16138174,64855.0,64850.0,0.001]
[1721310023153,0.009,64851.0,64850.0,0.001]
[1721310023606,0.009,64851.0,64850.0,0.0056055]
[1721310023867,0.009,64851.0,64850.0,0.001]
[1721310024085,0.009,64851.0,64850.0,0.0056055]
[1721310024347,0.009,64851.0,64850.0,0.001]
[1721310025271,0.009,64851.0,64850.0,0.62468629]
[1721310025499,0.009,64851.0,64850.0,0.92848479]
[1721310025726,0.007,64855.0,64854.0,0.523376]
[1721310025991,0.231955,64870.0,64855.0,0.154189]
[1721310026214,0.30853774,64869.0,64855.0,0.154189]
[1721310026439,0.15438174,64869.0,64856.0,0.00458898]
[1721310026669,0.0778,64870.0,64856.0,0.31296098]
[1721310026908,0.0778,64870.0,64857.0,0.07717479]
[1721310027150,0.154129,64881.0,64868.0,0.0605]
[1721310027382,0.1423,64882.0,64871.0,0.15415]
[1721310027383,0.15438174,64880.0,64871.0,0.15415]
[1721310027624,0.15438174,64880.0,64869.0,0.15870683]
[1721310027862,0.15438174,64880.0,64872.0,0.00454374]
[1721310028090,0.154134,64879.0,64870.0,0.00454846]
[1721310028309,0.154134,64879.0,64864.0,0.154168]
[1721310028561,0.154134,64879.0,64863.0,0.0605]
[1721310028562,0.154146,64874.0,64863.0,0.0605]
[1721310028786,0.15438174,64873.0,64865.0,0.00456029]
[1721310029006,0.15438174,64873.0,64864.0,0.00455846]
[1721310029228,0.154151,64872.0,64863.0,0.0605]
[1721310029484,0.15438174,64871.0,64865.0,0.00455609]
[1721310029954,0.15438174,64871.0,64861.0,0.0777]
[1721310030199,0.15438174,64871.0,64859.0,0.21548]
[1721310030200,0.15438174,64871.0,64866.0,0.00455558]
[1721310030427,0.018,64870.0,64863.0,0.15417]
[1721310030684,0.018,64870.0,64860.0,0.308355]
[1721310030901,0.014,64870.0,64864.0,0.00456031]
[1721310031151,0.014,64870.0,64863.0,0.001]
[1721310031365,0.007,64872.0,64865.0,0.00455629]
[1721310031366,0.004,64871.0,64865.0,0.00455629]
[1721310031586,0.004,64871.0,64864.0,0.00456085]
[1721310031587,0.299855,64870.0,64864.0,0.00456085]
[1721310031812,0.299855,64870.0,64856.0,0.0831]
[1721310032068,0.154157,64869.0,64856.0,0.0831]
[1721310032330,0.154157,64869.0,64857.0,0.00701202]
[1721310032552,0.1457,64870.0,64857.0,0.00701202]
[1721310032787,0.1457,64870.0,64857.0,0.08418681]
[1721310032998,0.1457,64870.0,64858.0,0.154182]
[1721310033490,0.15438174,64871.0,64866.0,0.001]
[1721310033491,0.15938174,64871.0,64866.0,0.001]
[1721310033728,0.003,64869.0,64866.0,0.001]
[1721310033966,0.003,64869.0,64868.0,0.154159]
[1721310034186,0.1,64879.0,64872.0,0.154149]
[1721310034416,0.06553,64885.0,64868.0,0.452318]
[1721310034417,0.15438174,64884.0,64873.0,0.154146]
[1721310034657,0.25438174,64884.0,64873.0,0.16112256]
[1721310034904,0.25438174,64884.0,64873.0,0.00697656]
[1721310035138,0.4647523,64884.0,64873.0,0.00697656]
[1721310035354,0.154132,64880.0,64873.0,0.00697656]
[1721310035594,0.154132,64880.0,64866.0,0.154163]
[1721310035595,0.15438174,64879.0,64866.0,0.154163]
[1721310035820,0.15438174,64879.0,64873.0,0.001]
[1721310036056,0.105,64884.0,64873.0,0.001]
[1721310036286,0.105,64884.0,64873.0,0.00971065]
[1721310036287,0.30850574,64883.0,64873.0,0.00971065]
[1721310037464,0.15438174,64883.0,64873.0,0.00971065]
[1721310037688,0.15438174,64883.0,64873.0,0.01071065]
[1721310037921,0.16838174,64883.0,64874.0,0.00697444]
[1721310038566,0.308253,64882.0,64874.0,0.00697444]
[1721310038811,0.15414,64877.0,64874.0,0.00697444]
[1721310039040,0.15438174,64876.0,64865.0,0.05548509]
[1721310039268,0.002794,64875.0,64865.0,0.05548509]
[1721310039512,0.002794,64875.0,64874.0,0.001]
[1721310041832,0.002794,64875.0,64865.0,0.20965109]
[1721310042058,0.009794,64875.0,64874.0,0.001]
[1721310042298,0.009794,64875.0,64874.0,0.002]
[1721310042782,0.007,64875.0,64874.0,0.001]
[1721310043014,0.014,64875.0,64874.0,0.002]
[1721310043466,0.007,64875.0,64874.0,0.001]
[1721310043705,0.014,64875.0,64874.0,0.001]
[1721310044172,0.007,64875.0,64874.0,0.001]
[1721310045142,0.014,64875.0,64874.0,0.001]
[1721310047253,0.16838174,64875.0,64874.0,0.001]
[1721310047499,1.28800508,64875.0,64874.0,0.001]
[1721310047739,1.91413063,64875.0,64874.0,0.001]
[1721310048264,1.86413063,64875.0,64874.0,0.001]
[1721310048468,1.90713063,64875.0,64874.0,0.001]
[1721310048913,2.10727438,64875.0,64874.0,0.001]
[1721310049136,2.06148012,64875.0,64874.0,0.001]
[1721310049365,1.76019504,64875.0,64874.0,0.001]
[1721310050333,2.11427432,64875.0,64874.0,0.001]
[1721310050573,1.07933,64855.0,64844.0,0.000913]
[1721310050813,0.771067,64845.0,64844.0,0.000913]
[1721310051043,0.92544874,64845.0,64844.0,0.000913]
[1721310053163,0.93944874,64845.0,64844.0,0.000913]
[1721310054134,0.95344874,64845.0,64844.0,0.000913]
[1721310054359,0.028,64845.0,64844.0,0.000913]
[1721310055291,0.64502174,64845.0,64844.0,0.000913]
[1721310055783,1.58276041,64845.0,64844.0,0.000913]
[1721310056044,0.602454,64829.0,64828.0,0.000913]
[1721310056281,1.11533874,64829.0,64828.0,0.000913]
[1721310056522,1.16533874,64829.0,64828.0,0.000913]
[1721310056743,1.68645572,64829.0,64828.0,0.000913]
[1721310056964,1.68645572,64829.0,64818.0,0.009174]
[1721310056965,0.771377,64819.0,64818.0,0.009174]
[1721310057211,0.92575874,64819.0,64818.0,0.009174]
[1721310057449,1.54460974,64819.0,64818.0,0.009174]
[1721310058634,1.49460974,64819.0,64818.0,0.009174]
[1721310058873,1.54460974,64819.0,64818.0,0.009174]
[1721310060328,1.16305874,64819.0,64818.0,0.009174]
[1721310061307,1.54460974,64819.0,64818.0,0.009174]
[1721310061574,1.55860974,64819.0,64818.0,0.009174]
[1721310061807,1.71295931,64819.0,64818.0,0.009174]
[1721310062050,1.55860974,64819.0,64818.0,0.009174]
[1721310064120,1.57260974,64819.0,64818.0,0.009174]
[1721310064398,2.00394974,64819.0,64818.0,0.009174]
[1721310064848,1.84124974,64819.0,64818.0,0.009174]
[1721310065077,1.17705874,64819.0,64818.0,0.009174]
[1721310065329,1.16305874,64819.0,64818.0,0.009174]
[1721310065571,1.53560974,64819.0,64818.0,0.009174]
[1721310065808,1.70317071,64819.0,64818.0,0.009174]
[1721310066052,1.94471071,64819.0,64818.0,0.009174]
[1721310066273,1.95871071,64819.0,64818.0,0.009174]
[1721310066504,2.29026171,64819.0,64818.0,0.009174]
[1721310066728,2.29026171,64819.0,64808.0,0.009174]
[1721310066729,1.130096,64809.0,64808.0,0.009174]
[1721310066995,1.60147774,64809.0,64808.0,0.009174]
[1721310067216,1.70147774,64809.0,64808.0,0.009174]
[1721310067459,1.72447774,64809.0,64808.0,0.009174]
[1721310068149,1.49867774,64809.0,64808.0,0.009174]
[1721310068602,1.54867774,64809.0,64808.0,0.009174]
[1721310069065,1.98001774,64809.0,64808.0,0.009174]
[1721310069567,1.130229,64801.0,64785.0,0.009174]
[1721310069813,0.513062,64786.0,64785.0,0.009174]
[1721310070049,1.06335174,64786.0,64785.0,0.009174]
[1721310070297,1.49505974,64786.0,64785.0,0.009174]
[1721310071037,1.54505974,64786.0,64785.0,0.009174]
[1721310071291,1.55905974,64786.0,64785.0,0.009174]
[1721310071524,1.57305974,64786.0,64785.0,0.009174]
[1721310071769,1.52305974,64786.0,64785.0,0.009174]
[1721310072010,1.15235174,64786.0,64785.0,0.009174]
[1721310072245,0.128,64786.0,64785.0,0.071674]
[1721310072490,0.028,64786.0,64785.0,0.152974]
[1721310072707,0.028,64786.0,64785.0,0.62228659]
[1721310072945,0.028,64786.0,64785.0,0.15921759]
[1721310073406,0.014,64786.0,64785.0,0.15921759]
[1721310073637,0.154342,64791.0,64785.0,0.15921759]
[1721310073869,0.171354,64786.0,64785.0,0.071674]
[1721310074089,0.17138174,64786.0,64785.0,0.071674]
[1721310074318,0.17138174,64786.0,64785.0,0.07790998]
[1721310074548,0.15438174,64786.0,64785.0,0.071674]
[1721310074777,0.16438174,64786.0,64785.0,0.071674]
[1721310075439,0.01,64786.0,64785.0,0.071674]
[1721310075680,0.014,64791.0,64788.0,0.154348]
[1721310075912,0.014,64791.0,64786.0,0.154352]
[1721310076135,0.014,64791.0,64789.0,0.0062296]
[1721310076366,0.014,64791.0,64786.0,0.154354]
[1721310076594,0.014,64791.0,64790.0,0.38586379]
[1721310076881,0.014,64791.0,64790.0,0.60190779]
[1721310077114,0.014,64791.0,64790.0,0.14510197]
[1721310077348,0.008,64791.0,64790.0,0.06792718]
[1721310077788,0.1,64798.0,64790.0,0.06792718]
[1721310078014,0.15438174,64797.0,64790.0,0.06792718]
[1721310078237,0.002,64791.0,64790.0,0.06792718]
[1721310078523,0.006,64791.0,64790.0,0.06792718]
[1721310078749,0.006,64791.0,64790.0,0.22227118]
[1721310078972,0.006,64791.0,64790.0,0.06792718]
[1721310079197,0.006,64791.0,64790.0,0.53096018]
[1721310079684,0.004,64791.0,64790.0,0.06792718]
[1721310079926,0.004,64791.0,64790.0,0.00722718]
[1721310080371,0.004,64791.0,64790.0,0.00622718]
[1721310080618,0.004,64791.0,64785.0,0.151874]
[1721310080872,0.004,64791.0,64785.0,0.009174]
[1721310080873,0.15438174,64790.0,64785.0,0.009174]
[1721310081102,1.36185974,64786.0,64785.0,0.009174]
[1721310081352,1.54675974,64786.0,64785.0,0.009174]
[1721310081849,1.54675974,64786.0,64758.0,0.0656]
[1721310081850,0.513105,64780.0,64758.0,0.0656]
[1721310082075,1.38496074,64780.0,64758.0,0.0656]
[1721310082342,0.463219,64764.0,64756.0,0.0802]
[1721310082564,0.463219,64764.0,64752.0,0.0656]
[1721310082565,0.61760074,64764.0,64752.0,0.0656]
[1721310083510,0.30878774,64764.0,64753.0,0.08634879]
[1721310083750,0.15393174,64764.0,64753.0,0.08634879]
[1721310083973,0.30833774,64764.0,64753.0,0.08634879]
[1721310084482,1.04896374,64764.0,64753.0,0.009174]
[1721310084713,1.05596374,64764.0,64763.0,0.010174]
[1721310084957,0.74715074,64764.0,64763.0,0.010174]
[1721310085187,1.04896374,64764.0,64763.0,0.009174]
[1721310085432,0.74015074,64764.0,64763.0,0.009174]
[1721310085676,0.74015074,64764.0,64763.0,0.010174]
[1721310085677,0.27193174,64764.0,64763.0,0.010174]
[1721310086657,0.58074474,64764.0,64763.0,0.010174]
[1721310086894,0.75815074,64764.0,64763.0,0.010174]
[1721310087581,0.27193174,64764.0,64763.0,0.010174]
[1721310088953,0.118,64764.0,64763.0,0.010174]
[1721310089194,0.018,64764.0,64763.0,0.010174]
[1721310089917,0.018,64764.0,64763.0,0.01601531]
[1721310090177,0.011,64764.0,64763.0,0.009174]
[1721310090433,0.16538174,64764.0,64763.0,0.01601531]
[1721310090646,0.27638174,64764.0,64763.0,0.01601531]
[1721310090873,0.27638174,64764.0,64763.0,0.009174]
[1721310090874,0.111,64764.0,64763.0,0.009174]
[1721310091106,0.117,64764.0,64763.0,0.009174]
[1721310091333,0.117,64764.0,64763.0,0.01501531]
[1721310091606,0.41478774,64764.0,64763.0,0.01501531]
[1721310091859,0.64760074,64764.0,64763.0,0.009174]
[1721310092113,0.74460074,64764.0,64763.0,0.009174]
[1721310092345,0.28138174,64764.0,64763.0,0.009174]
[1721310092853,0.43578774,64764.0,64763.0,0.009174]
[1721310093308,0.27738174,64764.0,64763.0,0.009174]
[1721310093538,0.25738174,64764.0,64763.0,0.009174]
[1721310093772,1.05541374,64764.0,64763.0,0.009174]
[1721310094219,1.41522674,64764.0,64763.0,0.009174]
[1721310094705,1.36522674,64764.0,64763.0,0.009174]
[1721310094944,1.36606674,64764.0,64763.0,0.009174]
[1721310095176,1.42006674,64764.0,64763.0,0.009174]
[1721310095414,1.43006674,64764.0,64763.0,0.010174]
[1721310095651,1.43506674,64764.0,64763.0,0.010174]
[1721310095892,1.38506674,64764.0,64763.0,0.010174]
[1721310097042,1.43506674,64764.0,64763.0,0.010174]
[1721310097505,1.37106674,64764.0,64763.0,0.009174]
[1721310097739,0.75244074,64764.0,64763.0,0.010174]
[1721310097992,0.26622174,64764.0,64763.0,0.010174]
[1721310098493,0.01184,64764.0,64763.0,0.231083]
[1721310098718,0.01184,64764.0,64763.0,0.28208829]
[1721310098962,0.01184,64764.0,64763.0,0.28799529]
[1721310099186,1e-08,64764.0,64763.0,1.06004029]
[1721310099413,1e-08,64764.0,64763.0,1.36885829]
[1721310099414,0.01100001,64764.0,64763.0,1.36885829]
[1721310099637,0.308679,64793.0,64763.0,1.36885829]
[1721310099638,0.002794,64785.0,64773.0,0.308767]
[1721310099855,0.46304871,64778.0,64775.0,0.07717479]
[1721310100154,0.15438174,64785.0,64775.0,0.07717479]
[1721310100155,0.15438174,64785.0,64776.0,0.1282395]
[1721310100378,0.15438174,64785.0,64776.0,0.00586414]
[1721310100622,0.15438174,64785.0,64777.0,0.12820184]
[1721310100845,0.15438174,64784.0,64776.0,0.00586414]
[1721310101070,0.154371,64779.0,64778.0,0.00585929]
[1721310101304,0.308765,64775.0,64767.0,0.0614]
[1721310101547,0.1544,64767.0,64763.0,0.087974]
[1721310101779,0.15438174,64774.0,64763.0,0.009174]
[1721310101780,0.15438174,64766.0,64763.0,0.009174]
[1721310101993,0.154404,64765.0,64763.0,0.009174]
[1721310102214,0.30878774,64764.0,64763.0,0.009174]
[1721310102465,0.71760074,64764.0,64763.0,0.009174]
[1721310102679,0.40878774,64764.0,64763.0,0.009174]
[1721310102902,0.25938174,64764.0,64763.0,0.009174]
[1721310104049,0.105,64764.0,64763.0,0.009174]
[1721310104270,0.31378774,64764.0,64763.0,0.009174]
[1721310104501,0.74560074,64764.0,64763.0,0.009174]
[1721310104759,1.05441374,64764.0,64763.0,0.009174]
[1721310104998,0.27738174,64764.0,64763.0,0.009174]
[1721310105224,0.25838174,64764.0,64763.0,0.011174]
[1721310105454,0.41278774,64764.0,64763.0,0.011174]
[1721310105673,0.26538174,64764.0,64763.0,0.011174]
[1721310106839,0.011,64764.0,64763.0,0.474401]
[1721310107079,0.011,64764.0,64763.0,0.17147528]
[1721310107315,0.011,64764.0,64763.0,0.48338148]
[1721310107538,0.011,64764.0,64763.0,1.36335656]
[1721310107762,0.011,64764.0,64763.0,1.05453077]
[1721310108206,0.011,64764.0,64763.0,0.74571277]
[1721310108426,0.007,64764.0,64763.0,1.05353077]
[1721310108691,0.1,64777.0,64766.0,0.3088]
[1721310108947,0.4665,64779.0,64775.0,0.07717479]
[1721310109173,0.4665,64779.0,64775.0,0.23155479]
[1721310109386,0.4665,64779.0,64778.0,0.0614]
[1721310109617,0.620843,64791.0,64778.0,0.06726712]
[1721310109861,0.15717574,64790.0,64778.0,0.06726712]
[1721310110072,0.1,64789.0,64778.0,0.0614]
[1721310110313,0.15717574,64788.0,64779.0,0.00586469]
[1721310110564,0.1,64787.0,64779.0,0.00586469]
[1721310110810,0.15717574,64786.0,64779.0,0.00586469]
[1721310111066,0.1,64785.0,64779.0,0.00586469]
[1721310111284,0.15717574,64784.0,64779.0,0.00586469]
[1721310111532,0.15717574,64784.0,64770.0,0.154392]
[1721310111775,0.1,64783.0,64778.0,0.001]
[1721310112007,0.15717574,64782.0,64778.0,0.001]
[1721310112269,0.1,64781.0,64779.0,0.001]
[1721310112483,0.013,64785.0,64781.0,0.154366]
[1721310112713,0.013,64785.0,64781.0,0.0627]
[1721310112977,0.004,64786.0,64785.0,0.771782]
[1721310113188,0.004,64786.0,64785.0,1.208674]
[1721310113418,0.004,64786.0,64785.0,1.20866574]
[1721310113680,0.002794,64798.0,64792.0,0.154338]
[1721310113903,0.620804,64807.0,64794.0,0.154334]
[1721310113904,0.002794,64806.0,64794.0,0.154334]
[1721310114158,0.15438174,64805.0,64795.0,0.061]
[1721310114386,0.002794,64804.0,64795.0,0.06680739]
[1721310114635,0.4665,64807.0,64795.0,0.06680739]
[1721310114636,0.15438174,64803.0,64795.0,0.06680739]
[1721310114872,0.002794,64802.0,64795.0,0.06680739]
[1721310115176,0.15438174,64802.0,64795.0,0.061]
[1721310115440,0.15438174,64802.0,64796.0,0.00580496]
[1721310115906,0.15438174,64802.0,64797.0,0.0765]
[1721310116126,0.4665,64807.0,64797.0,0.230827]
[1721310116354,0.014,64802.0,64799.0,0.154321]
[1721310116589,0.014,64802.0,64800.0,0.15432]
[1721310117039,0.014,64802.0,64800.0,0.16005857]
[1721310117261,0.014,64802.0,64800.0,0.00573857]
[1721310117512,0.016,64802.0,64800.0,0.00573857]
[1721310117740,0.016,64802.0,64798.0,0.154323]
[1721310118001,0.027,64802.0,64801.0,0.00573615]
[1721310118263,0.028,64802.0,64799.0,0.154322]
[1721310118516,0.001,64802.0,64801.0,0.00573615]
[1721310118745,0.001,64802.0,64799.0,0.154322]
[1721310118746,0.001,64802.0,64800.0,0.00573857]
[1721310119202,0.002,64802.0,64799.0,0.154322]
[1721310119435,0.002,64802.0,64801.0,0.00573615]
[1721310119658,0.002,64802.0,64800.0,0.00573232]
[1721310119908,0.002,64802.0,64801.0,0.0057299]
[1721310120388,0.001,64802.0,64801.0,0.0057299]
[1721310120623,0.001,64802.0,64801.0,0.462955]
[1721310120847,0.002,64802.0,64801.0,0.77732182]
[1721310121366,0.001,64802.0,64801.0,0.77732182]
[1721310121591,0.002,64802.0,64801.0,0.46868482]
[1721310121807,0.002,64802.0,64801.0,0.00572982]
[1721310122028,0.001,64802.0,64801.0,0.00572982]
[1721310122252,0.001,64802.0,64801.0,0.00572979]
[1721310122471,0.001,64802.0,64801.0,0.00972979]
[1721310122721,0.001,64802.0,64801.0,0.004]
[1721310122943,0.002,64802.0,64801.0,0.00972995]
[1721310123199,0.15638174,64802.0,64801.0,0.004]
[1721310123885,0.002,64802.0,64801.0,0.004]
[1721310124335,0.002,64802.0,64801.0,0.00575673]
[1721310124557,0.003,64802.0,64801.0,0.00575673]
[1721310125035,0.003,64802.0,64795.0,0.21533]
[1721310125270,0.003,64802.0,64801.0,0.00575445]
[1721310125518,0.154323,64800.0,64791.0,0.0779]
[1721310125740,0.311632,64802.0,64791.0,0.0779]
[1721310125741,0.002794,64799.0,64791.0,0.0779]
[1721310125968,0.002794,64801.0,64792.0,0.00577626]
[1721310126205,0.002794,64801.0,64794.0,0.154333]
[1721310126446,0.002794,64801.0,64791.0,0.09660128]
[1721310126447,0.15438174,64800.0,64795.0,0.00576899]
[1721310126674,0.002794,64799.0,64795.0,0.00576899]
[1721310126904,0.15717574,64799.0,64791.0,0.0779]
[1721310127353,0.15438174,64798.0,64792.0,0.00577626]
[1721310127574,0.154337,64793.0,64792.0,0.00577626]
[1721310127812,0.46302,64792.0,64791.0,0.002]
[1721310128046,1.04908174,64792.0,64791.0,0.002]
[1721310128317,1.43493653,64792.0,64791.0,0.004]
[1721310128533,1.35776174,64792.0,64791.0,0.004]
[1721310128759,1.35776174,64792.0,64791.0,0.002]
[1721310129219,1.40976174,64792.0,64791.0,0.001]
[1721310129444,1.35976174,64792.0,64791.0,0.004]
[1721310129667,1.86504174,64792.0,64791.0,0.004]
[1721310129892,1.86504174,64792.0,64791.0,0.001]
[1721310130122,1.87804174,64792.0,64791.0,0.002]
[1721310130373,1.82804174,64792.0,64791.0,0.002]
[1721310130592,1.89104174,64792.0,64791.0,0.003]
[1721310131263,1.88904174,64792.0,64791.0,0.002]
[1721310131484,1.88904174,64792.0,64791.0,0.003]
[1721310131485,1.84304174,64792.0,64791.0,0.003]
[1721310131703,1.53436174,64792.0,64791.0,0.003]
[1721310132163,1.53436174,64792.0,64791.0,0.002]
[1721310132164,1.53036174,64792.0,64791.0,0.002]
[1721310132383,1.53436174,64792.0,64791.0,0.003]
[1721310132846,0.28438174,64792.0,64791.0,0.003]
[1721310133522,0.43872174,64792.0,64791.0,0.003]
[1721310133942,0.74340174,64792.0,64791.0,0.002]
[1721310134210,0.05,64790.0,64767.0,0.01854193]
[1721310134437,0.05,64790.0,64768.0,0.0609]
[1721310134438,0.154387,64772.0,64768.0,0.0609]
[1721310134682,0.154387,64772.0,64768.0,0.06673904]
[1721310134924,0.15438174,64771.0,64767.0,0.01854193]
[1721310135168,0.154397,64768.0,64767.0,0.01854193]
[1721310135423,1.25816074,64768.0,64767.0,0.01854193]
[1721310136112,1.25816074,64768.0,64767.0,0.01954193]
[1721310136568,1.35816074,64768.0,64767.0,0.01854193]
[1721310137313,1.35816074,64768.0,64767.0,0.01954193]
[1721310137314,1.36916074,64768.0,64767.0,0.01954193]
[1721310137548,1.38016074,64768.0,64767.0,0.02054193]
[1721310137774,1.36916074,64768.0,64767.0,0.01954193]
[1721310138002,1.36916074,64768.0,64767.0,0.02054193]
[1721310138237,1.37216074,64768.0,64767.0,0.02054193]
[1721310138515,1.73095474,64768.0,64767.0,0.02054193]
[1721310138719,2.01640025,64768.0,64767.0,0.02054193]
[1721310138951,2.01640025,64768.0,64767.0,0.01954193]
[1721310138952,2.20561953,64768.0,64767.0,0.01954193]
[1721310139182,2.23557364,64768.0,64767.0,0.01954193]
[1721310139642,2.24757364,64768.0,64767.0,0.02054193]
[1721310139895,2.22457364,64768.0,64767.0,0.01854193]
[1721310140577,0.80549,64760.0,64747.0,0.009163]
[1721310140851,0.768781,64754.0,64747.0,0.009163]
[1721310141079,1.631111,64748.0,64747.0,0.009163]
[1721310141313,2.60422131,64748.0,64747.0,0.009163]
[1721310141543,2.60422131,64748.0,64743.0,0.009174]
[1721310141544,1.07776,64744.0,64743.0,0.009174]
[1721310141769,1.97295774,64744.0,64743.0,0.009174]
[1721310142001,2.01065592,64744.0,64743.0,0.009174]
[1721310142697,2.04362367,64744.0,64743.0,0.009174]
[1721310142925,2.01065592,64744.0,64743.0,0.009174]
[1721310143377,2.13030731,64744.0,64743.0,0.010174]
[1721310143626,2.27400731,64744.0,64743.0,0.010174]
[1721310143843,2.19032367,64744.0,64743.0,0.010174]
[1721310144066,2.15735592,64744.0,64743.0,0.010174]
[1721310144301,1.94465592,64744.0,64743.0,0.010174]
[1721310144574,1.95695774,64744.0,64743.0,0.010174]
[1721310144807,2.00865592,64744.0,64743.0,0.010174]
[1721310145031,1.51925974,64744.0,64743.0,0.010174]
[1721310145500,1.45615974,64744.0,64743.0,0.010174]
[1721310145729,0.17138174,64744.0,64743.0,0.010174]
[1721310146429,0.15738174,64744.0,64743.0,0.010174]
[1721310146672,0.15438174,64744.0,64743.0,0.009174]
[1721310146911,0.16838174,64744.0,64743.0,0.009174]
[1721310147186,0.014,64744.0,64743.0,0.151474]
[1721310147426,0.026,64744.0,64743.0,0.923756]
[1721310147670,0.026,64744.0,64743.0,0.92989313]
[1721310148119,0.04,64744.0,64743.0,0.93089313]
[1721310148556,0.04,64744.0,64743.0,0.15761113]
[1721310148557,0.026,64744.0,64743.0,0.15761113]
[1721310148792,0.027,64744.0,64743.0,0.16461113]
[1721310149472,0.30884,64759.0,64743.0,0.16461113]
[1721310149473,0.002794,64753.0,64743.0,0.15761113]
[1721310149699,0.308846,64758.0,64743.0,0.15761113]
[1721310149700,0.154442,64750.0,64743.0,0.15761113]
[1721310149920,0.001,64744.0,64743.0,0.16361113]
[1721310150145,0.001,64744.0,64743.0,0.157474]
[1721310150379,0.002,64744.0,64743.0,0.16459258]
[1721310151079,0.002,64744.0,64743.0,0.16359258]
[1721310151528,0.002,64744.0,64743.0,0.16459258]
[1721310151529,0.001,64744.0,64743.0,0.16459258]
[1721310151987,0.15438174,64749.0,64743.0,0.15759258]
[1721310152447,0.002794,64748.0,64743.0,0.15959258]
[1721310152673,0.15438174,64747.0,64743.0,0.15959258]
[1721310152904,0.15438174,64747.0,64743.0,0.15759258]
[1721310154271,0.15438174,64747.0,64743.0,0.15959258]
[1721310154757,0.15438174,64747.0,64743.0,0.15759258]
[1721310154978,0.15438174,64747.0,64746.0,0.07717479]
[1721310154979,0.001,64747.0,64746.0,0.07717479]
[1721310155231,0.001,64747.0,64746.0,0.54052279]
[1721310155458,0.001,64747.0,64746.0,0.8555371]
[1721310155685,0.003,64747.0,64746.0,0.9937371]
[1721310155933,0.002,64747.0,64746.0,1.45701784]
[1721310156672,0.002794,64761.0,64760.0,0.610948]
[1721310156906,0.4665,64762.0,64761.0,0.154413]
[1721310157177,0.4665,64762.0,64760.0,0.15377532]
[1721310157415,0.4665,64762.0,64761.0,0.00607289]
[1721310158095,0.308798,64768.0,64761.0,0.00607289]
[1721310158317,0.46597574,64767.0,64761.0,0.00607289]
[1721310158545,0.1,64766.0,64755.0,0.0605]
[1721310158812,0.308835,64760.0,64749.0,0.0605]
[1721310159052,0.308835,64760.0,64756.0,0.00608075]
[1721310159053,0.154424,64757.0,64756.0,0.00608075]
[1721310159277,0.154424,64757.0,64749.0,0.0605]
[1721310159278,0.15438174,64757.0,64749.0,0.0605]
[1721310159499,0.308815,64764.0,64749.0,0.0605]
[1721310159500,0.25438174,64756.0,64749.0,0.0605]
[1721310159729,0.25438174,64756.0,64750.0,0.00609518]
[1721310159947,0.002794,64755.0,64750.0,0.00609518]
[1721310160197,0.15438174,64754.0,64750.0,0.00609518]
[1721310160434,0.002794,64753.0,64750.0,0.00609518]
[1721310160669,0.002794,64753.0,64749.0,0.0615]
[1721310161155,0.002794,64753.0,64750.0,0.00609518]
[1721310161692,0.002794,64753.0,64749.0,0.0605]
[1721310161911,0.002794,64753.0,64751.0,0.00609275]
[1721310162155,0.002794,64753.0,64750.0,0.00609518]
[1721310162391,0.002794,64753.0,64749.0,0.0605]
[1721310162617,0.002794,64753.0,64751.0,0.00609275]
[1721310162846,0.002794,64753.0,64750.0,0.00609518]
[1721310163066,0.002794,64753.0,64749.0,0.0605]
[1721310163294,0.002794,64753.0,64750.0,0.00609518]
[1721310163738,0.002794,64753.0,64749.0,0.0605]
[1721310164645,0.15438174,64752.0,64750.0,0.00609518]
[1721310164869,0.002794,64751.0,64750.0,0.00609518]
[1721310165096,0.31161374,64751.0,64744.0,0.0633]
[1721310165359,0.31161374,64751.0,64743.0,0.009174]
[1721310165360,0.15438174,64750.0,64743.0,0.009174]